{"text_format":"1","workbook":"xlsx","n_sheets":3,"sheets":["Rules DB","Deadlines Tool","Sheet6"],"not_rendered":{"charts":0,"images":7,"macros":1,"external_links":0,"defined_names":6,"comments":1,"pivot_tables":1},"unopened":[],"bounds":{"document_bytes":16777216,"sheet_cells":100000,"rows_first":2000,"rows_last":500,"rows_between":2000,"halvings":0,"cell_chars":16384,"cell_head_chars":4096},"cells_cut":0,"cells_raw":0,"read":"whole","date_system":"1900"}

{"sheet":"Rules DB","index":0,"n_rows":111,"n_cols":23,"rows_kept":111,"cut":false,"hidden":true,"merged":[[0,17,0,20],[0,13,0,16],[0,9,0,12]]}
["Deadline Name","Auction type","Origin","Month change from origin","Days change from origin / on top of months","Generating CMU Type","Minimum Delivery Year","Maximum Delivery Year",null,"Auction Start Date",null,null,null,"Auction Results",null,null,null,"Auction Clears",null,null,null,null,"UK BANK HOLIDAYS"]
["Metering Assessment","T-4","Start of delivery year",-36,null,"Existing Generating",2016,{"$f":"MAX($I$3:$I$21)","v":2034},"Delivery Year","T-1","T-4","TA","EA","T-1","T-4","TA","EA","T-1","T-4","TA","EA","Count","2015-01-01"]
["Metering Assessment","T-4","Start of delivery year",-36,null,"Proven DSR",2016,{"$f":"MAX($I$3:$I$21)","v":2034},2016,"No auction","No auction","2016-01-26","No auction","No auction","No auction","2016-02-08","No auction","No auction","No auction","2016-01-27","No auction",{"$f":"IF(12-COUNTIF(J3:U3,\"No auction\")=0,\"\",12-COUNTIF(J3:U3,\"No auction\"))","v":3},"2015-04-03"]
["Connection Agreement (Transmission only)","T-4","Start of delivery year",-18,null,"Existing Generating",2021,{"$f":"MAX($I$3:$I$21)","v":2034},{"$f":"I3+1","v":2017},"No auction","No auction","2017-03-22","2017-01-31","No auction","No auction","2017-04-03","2017-02-15","No auction","No auction","2017-03-22","2017-02-03",6,"2015-04-06"]
["Metering Test","T-4","Start of delivery year",-18,null,"Existing Generating",2016,{"$f":"MAX($I$3:$I$21)","v":2034},2018,"2018-01-30","2014-12-16","No auction","No auction","2018-02-13","2015-01-02","No auction","No auction","2018-02-01","2014-12-18","No auction","No auction",6,"2015-05-04"]
["Connection Agreement (Distribution only)","T-4","Start of delivery year",-18,null,"New Build",2016,2034,2019,"2019-01-29","2015-12-08","No auction","No auction","No auction","2015-12-22","No auction","No auction","No auction","2015-12-10","No auction","No auction",4,"2015-05-25"]
["Metering Test","T-4","Start of delivery year",-18,null,"Proven DSR",2016,{"$f":"MAX($I$3:$I$21)","v":2034},2020,"No auction","2016-12-06","No auction","No auction","No auction","2016-12-20","No auction","No auction","No auction","2016-12-08","No auction","No auction",3,"2015-08-31"]
["Metering Test","T-1","Start of delivery year",null,-14,"Existing Generating",2016,2034,2021,"No auction","2018-02-06","No auction","No auction","No auction","2018-02-20","No auction","No auction","No auction","2018-02-08","No auction","No auction",3,"2015-12-25"]
["Metering Test","T-1","Start of delivery year",null,-14,"Proven DSR",2016,2034,2022,"No auction","2019-02-05","No auction","No auction","No auction","No auction","No auction","No auction","No auction","No auction","No auction","No auction",1,"2015-12-28"]
["Metering Assessment","T-1","Start of delivery year",-4,null,"Unproven DSR",2016,2034,2023,"No auction","No auction","No auction","No auction","No auction","No auction","No auction","No auction","No auction","No auction","No auction","No auction","","2016-01-01"]
["Metering Test","T-1","Start of delivery year",null,-14,"Unproven DSR",2016,2034,2024,"No auction","No auction","No auction","No auction","No auction","No auction","No auction","No auction","No auction","No auction","No auction","No auction","","2016-03-25"]
["DSR Test","T-1","Start of delivery year",-1,null,"Unproven DSR",2016,2034,2025,"No auction","No auction","No auction","No auction","No auction","No auction","No auction","No auction","No auction","No auction","No auction","No auction","","2016-03-28"]
["Substantial Completion Milestone","T-4","Start of delivery year",12,null,"New Build",2016,2020,2026,"No auction","No auction","No auction","No auction","No auction","No auction","No auction","No auction","No auction","No auction","No auction","No auction","","2016-05-02"]
["Metering Assessment","T-4","Start of delivery year",-4,null,"Unproven DSR",2016,2034,2027,"No auction","No auction","No auction","No auction","No auction","No auction","No auction","No auction","No auction","No auction","No auction","No auction","","2016-05-30"]
["Metering Test","T-4","Start of delivery year",null,-14,"Unproven DSR",2016,{"$f":"MAX($I$3:$I$21)","v":2034},2028,"No auction","No auction","No auction","No auction","No auction","No auction","No auction","No auction","No auction","No auction","No auction","No auction","","2016-08-29"]
["DSR Test","T-4","Start of delivery year",-1,null,"Unproven DSR",2016,2034,2029,"No auction","No auction","No auction","No auction","No auction","No auction","No auction","No auction","No auction","No auction","No auction","No auction","","2016-12-26"]
["Long Stop Date","T-1","Start of delivery year",0,null,"New Build",2016,2034,2030,"No auction","No auction","No auction","No auction","No auction","No auction","No auction","No auction","No auction","No auction","No auction","No auction","","2016-12-27"]
["Satisfactory Performance Dates","T-1","Start of delivery year",7,null,"New Build",2016,2034,2031,"No auction","No auction","No auction","No auction","No auction","No auction","No auction","No auction","No auction","No auction","No auction","No auction","","2017-01-02"]
["Metering Test","T-1","Start of delivery year",0,null,"New Build",2016,2034,2032,"No auction","No auction","No auction","No auction","No auction","No auction","No auction","No auction","No auction","No auction","No auction","No auction","","2017-04-14"]
["Metering Assessment","T-1","Start of delivery year",-4,null,"Existing Generating",2016,2018,2033,"No auction","No auction","No auction","No auction","No auction","No auction","No auction","No auction","No auction","No auction","No auction","No auction","","2017-04-17"]
["Metering Assessment","T-1","Start of delivery year",-4,null,"Proven DSR",2016,2018,2034,"No auction","No auction","No auction","No auction","No auction","No auction","No auction","No auction","No auction","No auction","No auction","No auction","","2017-05-01"]
["Financial Commitment Milestone","T-1","Auction Results Day",3,null,"New Build",2016,2034,null,null,null,null,null,null,null,null,null,null,null,null,null,null,"2017-05-29"]
["Satisfactory Performance Dates","T-1","Start of delivery year",7,null,"Existing Generating",2016,2034,null,null,null,null,null,null,null,null,null,null,null,null,null,null,"2017-08-28"]
["Connection Agreement (Distribution only)","T-1","Start of delivery year",-6,null,"New Build",2016,2034,null,null,null,null,null,null,null,null,null,null,null,null,null,null,"2017-12-25"]
["Metering Assessment","T-1","Start of delivery year",0,null,"New Build",2016,2034,null,null,null,null,null,null,null,null,null,null,null,null,null,null,"2017-12-26"]
["Satisfactory Performance Dates","T-1","Start of delivery year",7,null,"Proven DSR",2016,2034,null,null,null,null,null,null,null,null,null,null,null,null,null,null,"2018-01-01"]
["Satisfactory Performance Dates","T-1","Start of delivery year",7,null,"Unproven DSR",2016,2034,null,null,null,null,null,null,null,null,null,null,null,null,null,null,"2018-03-30"]
["Six monthly progress reporting date 1","T-1","Start of delivery year",-10,null,"New Build",2034,2034,null,null,null,null,null,null,null,null,null,null,null,null,null,null,"2018-04-02"]
["Satisfactory Performance Dates","T-4","Start of delivery year",7,null,"Existing Generating",2016,2034,null,null,null,null,null,null,null,null,null,null,null,null,null,null,"2018-05-07"]
["Satisfactory Performance Dates","T-4","Start of delivery year",7,null,"New Build",2016,2034,null,null,null,null,null,null,null,null,null,null,null,null,null,null,"2018-05-28"]
["Satisfactory Performance Dates","T-4","Start of delivery year",7,null,"Proven DSR",2016,2034,null,null,null,null,null,null,null,null,null,null,null,null,null,null,"2018-08-27"]
["Satisfactory Performance Dates","T-4","Start of delivery year",7,null,"Unproven DSR",2016,2034,null,null,null,null,null,null,null,null,null,null,null,null,null,null,"2018-12-25"]
["Six monthly progress reporting date 1","T-4","Start of delivery year",-40,null,"New Build",2020,2034,null,null,null,null,null,null,null,null,null,null,null,null,null,null,"2018-12-26"]
["Long Stop Date","T-4","Start of delivery year",12,null,"New Build",2016,2034,null,null,null,null,null,null,null,null,null,null,null,null,null,null,"2019-01-01"]
["Substantial Completion Milestone","T-4","Start of delivery year",0,null,"New Build",2021,2034,null,null,null,null,null,null,null,null,null,null,null,null,null,null,"2019-04-19"]
["Metering Assessment","T-4","Start of delivery year",12,null,"New Build",2016,{"$f":"MAX($I$3:$I$21)","v":2034},null,null,null,null,null,null,null,null,null,null,null,null,null,null,"2019-04-22"]
["Metering Test","T-4","Start of delivery year",12,null,"New Build",2016,2034,null,null,null,null,null,null,null,null,null,null,null,null,null,null,"2019-05-06"]
["Six monthly progress reporting date 2","T-4","Start of delivery year",-34,null,"New Build",2016,2034,null,null,null,null,null,null,null,null,null,null,null,null,null,null,"2019-05-27"]
["Financial Commitment Milestone","T-4","Auction Results Day",16,null,"New Build",2016,2034,null,null,null,null,null,null,null,null,null,null,null,null,null,null,"2019-08-26"]
["Six monthly progress reporting date 3","T-4","Start of delivery year",-28,null,"New Build",2020,2034,null,null,null,null,null,null,null,null,null,null,null,null,null,null,"2019-12-25"]
["Six monthly progress reporting date 4","T-4","Start of delivery year",-22,null,"New Build",2016,2034,null,null,null,null,null,null,null,null,null,null,null,null,null,null,"2019-12-26"]
["Six monthly progress reporting date 5","T-4","Start of delivery year",-16,null,"New Build",2016,2034,null,null,null,null,null,null,null,null,null,null,null,null,null,null,"2020-01-01"]
["Six monthly progress reporting date 6","T-4","Start of delivery year",-10,null,"New Build",2016,2034,null,null,null,null,null,null,null,null,null,null,null,null,null,null,"2020-04-10"]
["Six monthly progress reporting date 7","T-4","Start of delivery year",-4,null,"New Build",2016,2034,null,null,null,null,null,null,null,null,null,null,null,null,null,null,"2020-04-13"]
["Six monthly progress reporting date 8","T-4","Start of delivery year",2,null,"New Build",2016,2034,null,null,null,null,null,null,null,null,null,null,null,null,null,null,"2020-05-04"]
["Six monthly progress reporting date 9","T-4","Start of delivery year",8,null,"New Build",2016,2034,null,null,null,null,null,null,null,null,null,null,null,null,null,null,"2020-05-25"]
["Metering Test","TA","Start of delivery year",null,-14,"Proven DSR",2016,2034,null,null,null,null,null,null,null,null,null,null,null,null,null,null,"2020-08-31"]
["Metering Assessment","TA","Start of delivery year",-1,null,"Unproven DSR",2016,2034,null,null,null,null,null,null,null,null,null,null,null,null,null,null,"2020-12-25"]
["Metering Test","TA","Start of delivery year",null,-14,"Unproven DSR",2016,2034,null,null,null,null,null,null,null,null,null,null,null,null,null,null,"2020-12-28"]
["DSR Test","TA","Start of delivery year",-1,null,"Unproven DSR",2016,2034,null,null,null,null,null,null,null,null,null,null,null,null,null,null,"2021-01-01"]
["Metering Assessment","TA","Start of delivery year",-4,null,"Proven DSR",2016,2034,null,null,null,null,null,null,null,null,null,null,null,null,null,null,"2021-04-02"]
["Satisfactory Performance Dates","TA","Start of delivery year",7,null,"Proven DSR",2016,2034,null,null,null,null,null,null,null,null,null,null,null,null,null,null,"2021-04-05"]
["Satisfactory Performance Dates","TA","Start of delivery year",7,null,"Unproven DSR",2016,2034,null,null,null,null,null,null,null,null,null,null,null,null,null,null,"2021-05-03"]
["Metering Test","EA","Start of delivery year",null,-14,"Existing Generating",2016,{"$f":"MAX($I$3:$I$21)","v":2034},null,null,null,null,null,null,null,null,null,null,null,null,null,null,"2021-05-31"]
["Metering Test","EA","Start of delivery year",null,-14,"Proven DSR",2016,2034,null,null,null,null,null,null,null,null,null,null,null,null,null,null,"2021-08-30"]
["Metering Assessment","EA","Start of delivery year",-1,null,"Unproven DSR",2016,2034,null,null,null,null,null,null,null,null,null,null,null,null,null,null,"2021-12-27"]
["Metering Test","EA","Start of delivery year",null,-14,"Unproven DSR",2016,2034,null,null,null,null,null,null,null,null,null,null,null,null,null,null,"2021-12-28"]
["DSR Test","EA","Start of delivery year",-1,null,"Unproven DSR",2016,2034,null,null,null,null,null,null,null,null,null,null,null,null,null,null,"2022-01-03"]
["Long Stop Date","EA","Start of delivery year",0,null,"New Build",2016,2034,null,null,null,null,null,null,null,null,null,null,null,null,null,null,"2022-04-15"]
["Satisfactory Performance Dates","EA","Start of delivery year",7,null,"New Build",2016,2034,null,null,null,null,null,null,null,null,null,null,null,null,null,null,"2022-04-18"]
["Metering Test","EA","Start of delivery year",0,null,"New Build",2016,2034,null,null,null,null,null,null,null,null,null,null,null,null,null,null,"2022-05-02"]
["Metering Assessment","EA","Start of delivery year",-4,null,"Existing Generating",2016,2034,null,null,null,null,null,null,null,null,null,null,null,null,null,null,"2022-05-30"]
["Metering Assessment","EA","Start of delivery year",-4,null,"Proven DSR",2016,2034,null,null,null,null,null,null,null,null,null,null,null,null,null,null,"2022-08-29"]
["Financial Commitment Milestone","EA","Auction Results Day",3,null,"New Build",2016,2034,null,null,null,null,null,null,null,null,null,null,null,null,null,null,"2022-12-26"]
["Satisfactory Performance Dates","EA","Start of delivery year",7,null,"Existing Generating",2016,2034,null,null,null,null,null,null,null,null,null,null,null,null,null,null,"2022-12-27"]
["Connection Agreement (Distribution only)","EA","Start of delivery year",-6,null,"New Build",2016,2034,null,null,null,null,null,null,null,null,null,null,null,null,null,null,"2023-01-02"]
["Metering Assessment","EA","Start of delivery year",0,null,"New Build",2016,2034,null,null,null,null,null,null,null,null,null,null,null,null,null,null,"2023-04-07"]
["Satisfactory Performance Dates","EA","Start of delivery year",7,null,"Proven DSR",2016,2034,null,null,null,null,null,null,null,null,null,null,null,null,null,null,"2023-04-10"]
["Satisfactory Performance Dates","EA","Start of delivery year",7,null,"Unproven DSR",2016,2034,null,null,null,null,null,null,null,null,null,null,null,null,null,null,"2023-05-01"]
["Six monthly progress reporting date 1","EA","Auction Start Date",3,null,"New Build",2016,2034,null,null,null,null,null,null,null,null,null,null,null,null,null,null,"2023-05-29"]
["Substantial Completion Milestone","EA","Start of delivery year",0,null,"New Build",2016,2034,null,null,null,null,null,null,null,null,null,null,null,null,null,null,"2023-12-26"]
["Substantial Completion Milestone","T-1","Start of delivery year",0,null,"New Build",2016,2034,null,null,null,null,null,null,null,null,null,null,null,null,null,null,"2024-01-01"]
["Six monthly progress reporting date 2","EA","Auction Start Date",6,null,"New Build",2016,{"$f":"MAX($I$3:$I$21)","v":2034},null,null,null,null,null,null,null,null,null,null,null,null,null,null,"2024-03-29"]
["Six monthly progress reporting date","T-1","Start of delivery year",-4,null,"New Build",2016,2034,null,null,null,null,null,null,null,null,null,null,null,null,null,null,"2024-04-01"]
["Metering Assessment","T-4","Start of delivery year",12,null,"Prospective Interconnector",2019,2034,null,null,null,null,null,null,null,null,null,null,null,null,null,null,"2024-05-06"]
["Metering Assessment","T-4","Start of delivery year",-36,null,"Existing Interconnector",2019,2034,null,null,null,null,null,null,null,null,null,null,null,null,null,null,"2024-05-27"]
["Metering Assessment","EA","Start of delivery year",0,null,"Prospective Interconnector",2016,2034,null,null,null,null,null,null,null,null,null,null,null,null,null,null,"2024-08-26"]
["Metering Assessment","EA","Start of delivery year",-4,null,"Existing Interconnector",2016,2034,null,null,null,null,null,null,null,null,null,null,null,null,null,null,"2024-12-25"]
["Metering Test","T-4","Start of delivery year",-18,null,"Existing Interconnector",2019,2034,null,null,null,null,null,null,null,null,null,null,null,null,null,null,"2024-12-26"]
["Metering Test","EA","Start of delivery year",null,-14,"Existing Interconnector",2016,2034,null,null,null,null,null,null,null,null,null,null,null,null,null,null,"2025-01-01"]
["Satisfactory Performance Dates","T-4","Start of delivery year",7,null,"Existing Interconnector",2019,2034,null,null,null,null,null,null,null,null,null,null,null,null,null,null,"2025-04-18"]
["Satisfactory Performance Dates","EA","Start of delivery year",7,null,"Existing Interconnector",2016,2034,null,null,null,null,null,null,null,null,null,null,null,null,null,null,"2025-04-21"]
["Metering Test","T-1","Start of delivery year",null,-14,"Existing Interconnector",2019,2034,null,null,null,null,null,null,null,null,null,null,null,null,null,null,"2025-05-05"]
["Metering Assessment","T-1","Start of delivery year",-6,null,"Existing Interconnector",2019,2034,null,null,null,null,null,null,null,null,null,null,null,null,null,null,"2025-05-26"]
["Long Stop Date","T-1","Start of delivery year",0,null,"Refurbishing",2016,2034,null,null,null,null,null,null,null,null,null,null,null,null,null,null,"2025-08-25"]
["Metering Test","T-1","Start of delivery year",0,null,"Refurbishing",2016,2034,null,null,null,null,null,null,null,null,null,null,null,null,null,null,"2025-12-25"]
["Metering Assessment","T-1","Start of delivery year",0,null,"Refurbishing",2016,2034,null,null,null,null,null,null,null,null,null,null,null,null,null,null,"2025-12-26"]
["Long Stop Date","T-4","Start of delivery year",12,null,"Refurbishing",2016,2034]
["Metering Test","T-4","Start of delivery year",0,null,"Refurbishing",2016,2034]
["Metering Assessment","T-4","Start of delivery year",0,null,"Refurbishing",2016,2034]
["Long Stop Date","EA","Start of delivery year",0,null,"Refurbishing",2016,2034]
["Metering Test","EA","Start of delivery year",0,null,"Refurbishing",2016,2034]
["Metering Assessment","EA","Start of delivery year",0,null,"Refurbishing",2016,2034]
["Metering Test","T-4","Start of delivery year",12,null,"Prospective Interconnector",2019,2034]
["Financial Commitment Milestone","T-4","Auction Results Day",16,null,"Refurbishing",2016,2034]
["Substantial Completion Milestone","T-4","Start of delivery year",0,null,"Refurbishing",2016,2034]
["Financial Commitment Milestone","T-1","Auction Results Day",3,null,"Refurbishing",2016,2034]
["Financial Commitment Milestone","EA","Auction Results Day",3,null,"Refurbishing",2016,2034]
["Substantial Completion Milestone","T-1","Start of delivery year",0,null,"Refurbishing",2016,2034]
["Substantial Completion Milestone","EA","Start of delivery year",0,null,"Refurbishing",2016,2034]
["Long Stop Date","T-1","Start of delivery year",0,null,"Prospective Interconnector",2019,2034]
["Satisfactory Performance Dates","T-1","Start of delivery year",7,null,"Prospective Interconnector",2019,2034]
["Metering Test","T-1","Start of delivery year",0,null,"Prospective Interconnector",2019,2034]
["Financial Commitment Milestone","T-1","Auction Results Day",3,null,"Prospective Interconnector",2019,2034]
["Connection Agreement (Distribution only)","T-1","Start of delivery year",-6,null,"Prospective Interconnector",2019,2034]
["Metering Assessment","T-1","Start of delivery year",0,null,"Prospective Interconnector",2019,2034]
["Six monthly progress reporting date 1","T-1","Start of delivery year",-10,null,"Prospective Interconnector",2034,2034]
["Substantial Completion Milestone","T-1","Start of delivery year",0,null,"Prospective Interconnector",2019,2034]
["Six monthly progress reporting date","T-1","Start of delivery year",-4,null,"Prospective Interconnector",2019,2034]
["Metering Assessment","T-1","Start of delivery year",-6,null,"Existing Generating",2019,2034]
["Metering Assessment","T-1","Start of delivery year",-6,null,"Proven DSR",2019,2034]

{"sheet":"Deadlines Tool","index":1,"n_rows":277,"n_cols":17,"rows_kept":277,"cut":false,"hidden":false,"merged":[]}
[]
[null,null,null,null,null,null,null,null,null,null,null,null,null,null,null,null,"Version 3.1, updated 18/07/2018"]
[]
[]
[]
[]
[]
[]
[]
[]
[null,"Generating CMU Type","Delivery Year","Auction type","Date of deadline","Deadline Name"]
[null,"Existing Generating",2017,"EA","2017-05-31","Metering Assessment"]
[null,null,null,null,"2017-09-15","Metering Test"]
[null,null,null,null,"2018-05-01","Satisfactory Performance Dates"]
[null,null,2018,"T-1","2018-05-31","Metering Assessment"]
[null,null,null,null,"2018-09-14","Metering Test"]
[null,null,null,null,"2019-05-01","Satisfactory Performance Dates"]
[null,null,null,"T-4","2015-09-30","Metering Assessment"]
[null,null,null,null,"2017-03-31","Metering Test"]
[null,null,null,null,"2019-05-01","Satisfactory Performance Dates"]
[null,null,2019,"T-1","2019-03-29","Metering Assessment"]
[null,null,null,null,"2019-09-16","Metering Test"]
[null,null,null,null,"2020-05-01","Satisfactory Performance Dates"]
[null,null,null,"T-4","2016-09-30","Metering Assessment"]
[null,null,null,null,"2018-03-29","Metering Test"]
[null,null,null,null,"2020-05-01","Satisfactory Performance Dates"]
[null,null,2020,"T-4","2017-09-29","Metering Assessment"]
[null,null,null,null,"2019-03-29","Metering Test"]
[null,null,null,null,"2021-04-30","Satisfactory Performance Dates"]
[null,null,2021,"T-4","2018-09-28","Metering Assessment"]
[null,null,null,null,"2020-03-31","Connection Agreement (Transmission only)"]
[null,null,null,null,"2020-03-31","Metering Test"]
[null,null,null,null,"2022-04-29","Satisfactory Performance Dates"]
[null,null,2022,"T-4","2019-09-30","Metering Assessment"]
[null,null,null,null,"2021-03-31","Connection Agreement (Transmission only)"]
[null,null,null,null,"2021-03-31","Metering Test"]
[null,null,null,null,"2023-04-28","Satisfactory Performance Dates"]
[null,"Existing Interconnector",2017,"EA","2017-05-31","Metering Assessment"]
[null,null,null,null,"2017-09-15","Metering Test"]
[null,null,null,null,"2018-05-01","Satisfactory Performance Dates"]
[null,null,2019,"T-1","2019-03-29","Metering Assessment"]
[null,null,null,null,"2019-09-16","Metering Test"]
[null,null,null,"T-4","2016-09-30","Metering Assessment"]
[null,null,null,null,"2018-03-29","Metering Test"]
[null,null,null,null,"2020-05-01","Satisfactory Performance Dates"]
[null,null,2020,"T-4","2017-09-29","Metering Assessment"]
[null,null,null,null,"2019-03-29","Metering Test"]
[null,null,null,null,"2021-04-30","Satisfactory Performance Dates"]
[null,null,2021,"T-4","2018-09-28","Metering Assessment"]
[null,null,null,null,"2020-03-31","Metering Test"]
[null,null,null,null,"2022-04-29","Satisfactory Performance Dates"]
[null,null,2022,"T-4","2019-09-30","Metering Assessment"]
[null,null,null,null,"2021-03-31","Metering Test"]
[null,null,null,null,"2023-04-28","Satisfactory Performance Dates"]
[null,"New Build",2017,"EA","2017-03-31","Connection Agreement (Distribution only)"]
[null,null,null,null,"2017-04-28","Six monthly progress reporting date 1"]
[null,null,null,null,"2017-05-15","Financial Commitment Milestone"]
[null,null,null,null,"2017-07-31","Six monthly progress reporting date 2"]
[null,null,null,null,"2017-09-29","Long Stop Date"]
[null,null,null,null,"2017-09-29","Metering Assessment"]
[null,null,null,null,"2017-09-29","Metering Test"]
[null,null,null,null,"2017-09-29","Substantial Completion Milestone"]
[null,null,null,null,"2018-05-01","Satisfactory Performance Dates"]
[null,null,2018,"T-1","2018-03-29","Connection Agreement (Distribution only)"]
[null,null,null,null,"2018-05-11","Financial Commitment Milestone"]
[null,null,null,null,"2018-05-31","Six monthly progress reporting date"]
[null,null,null,null,"2018-09-28","Metering Assessment"]
[null,null,null,null,"2018-09-28","Metering Test"]
[null,null,null,null,"2018-09-28","Substantial Completion Milestone"]
[null,null,null,null,"2018-10-01","Long Stop Date"]
[null,null,null,null,"2019-05-01","Satisfactory Performance Dates"]
[null,null,null,"T-4","2015-11-30","Six monthly progress reporting date 2"]
[null,null,null,null,"2016-04-29","Financial Commitment Milestone"]
[null,null,null,null,"2016-11-30","Six monthly progress reporting date 4"]
[null,null,null,null,"2017-03-31","Connection Agreement (Distribution only)"]
[null,null,null,null,"2017-05-31","Six monthly progress reporting date 5"]
[null,null,null,null,"2017-11-30","Six monthly progress reporting date 6"]
[null,null,null,null,"2018-05-31","Six monthly progress reporting date 7"]
[null,null,null,null,"2018-11-30","Six monthly progress reporting date 8"]
[null,null,null,null,"2019-05-01","Satisfactory Performance Dates"]
[null,null,null,null,"2019-05-31","Six monthly progress reporting date 9"]
[null,null,null,null,"2019-09-30","Metering Assessment"]
[null,null,null,null,"2019-09-30","Metering Test"]
[null,null,null,null,"2019-09-30","Substantial Completion Milestone"]
[null,null,null,null,"2019-10-01","Long Stop Date"]
[null,null,2019,"T-1","2019-03-29","Connection Agreement (Distribution only)"]
[null,null,null,null,"2019-05-31","Six monthly progress reporting date"]
[null,null,null,null,"2019-09-30","Metering Assessment"]
[null,null,null,null,"2019-09-30","Metering Test"]
[null,null,null,null,"2019-09-30","Substantial Completion Milestone"]
[null,null,null,null,"2019-10-01","Long Stop Date"]
[null,null,null,null,"2020-05-01","Satisfactory Performance Dates"]
[null,null,null,"T-4","2016-11-30","Six monthly progress reporting date 2"]
[null,null,null,null,"2017-04-21","Financial Commitment Milestone"]
[null,null,null,null,"2017-11-30","Six monthly progress reporting date 4"]
[null,null,null,null,"2018-03-29","Connection Agreement (Distribution only)"]
[null,null,null,null,"2018-05-31","Six monthly progress reporting date 5"]
[null,null,null,null,"2018-11-30","Six monthly progress reporting date 6"]
[null,null,null,null,"2019-05-31","Six monthly progress reporting date 7"]
[null,null,null,null,"2019-11-29","Six monthly progress reporting date 8"]
[null,null,null,null,"2020-05-01","Satisfactory Performance Dates"]
[null,null,null,null,"2020-05-29","Six monthly progress reporting date 9"]
[null,null,null,null,"2020-09-30","Metering Assessment"]
[null,null,null,null,"2020-09-30","Metering Test"]
[null,null,null,null,"2020-09-30","Substantial Completion Milestone"]
[null,null,null,null,"2020-10-01","Long Stop Date"]
[null,null,2020,"T-4","2017-05-31","Six monthly progress reporting date 1"]
[null,null,null,null,"2017-11-30","Six monthly progress reporting date 2"]
[null,null,null,null,"2018-04-20","Financial Commitment Milestone"]
[null,null,null,null,"2018-05-31","Six monthly progress reporting date 3"]
[null,null,null,null,"2018-11-30","Six monthly progress reporting date 4"]
[null,null,null,null,"2019-03-29","Connection Agreement (Distribution only)"]
[null,null,null,null,"2019-05-31","Six monthly progress reporting date 5"]
[null,null,null,null,"2019-11-29","Six monthly progress reporting date 6"]
[null,null,null,null,"2020-05-29","Six monthly progress reporting date 7"]
[null,null,null,null,"2020-11-30","Six monthly progress reporting date 8"]
[null,null,null,null,"2021-04-30","Satisfactory Performance Dates"]
[null,null,null,null,"2021-05-28","Six monthly progress reporting date 9"]
[null,null,null,null,"2021-09-30","Metering Assessment"]
[null,null,null,null,"2021-09-30","Metering Test"]
[null,null,null,null,"2021-09-30","Substantial Completion Milestone"]
[null,null,null,null,"2021-10-01","Long Stop Date"]
[null,null,2021,"T-4","2018-05-31","Six monthly progress reporting date 1"]
[null,null,null,null,"2018-11-30","Six monthly progress reporting date 2"]
[null,null,null,null,"2019-05-31","Six monthly progress reporting date 3"]
[null,null,null,null,"2019-06-20","Financial Commitment Milestone"]
[null,null,null,null,"2019-11-29","Six monthly progress reporting date 4"]
[null,null,null,null,"2020-03-31","Connection Agreement (Distribution only)"]
[null,null,null,null,"2020-05-29","Six monthly progress reporting date 5"]
[null,null,null,null,"2020-11-30","Six monthly progress reporting date 6"]
[null,null,null,null,"2021-05-28","Six monthly progress reporting date 7"]
[null,null,null,null,"2021-09-30","Substantial Completion Milestone"]
[null,null,null,null,"2021-11-30","Six monthly progress reporting date 8"]
[null,null,null,null,"2022-04-29","Satisfactory Performance Dates"]
[null,null,null,null,"2022-05-31","Six monthly progress reporting date 9"]
[null,null,null,null,"2022-09-30","Long Stop Date"]
[null,null,null,null,"2022-09-30","Metering Assessment"]
[null,null,null,null,"2022-09-30","Metering Test"]
[null,null,2022,"T-4","2019-05-31","Six monthly progress reporting date 1"]
[null,null,null,null,"2019-11-29","Six monthly progress reporting date 2"]
[null,null,null,null,"2020-05-29","Six monthly progress reporting date 3"]
[null,null,null,null,"2020-11-30","Six monthly progress reporting date 4"]
[null,null,null,null,"2021-03-31","Connection Agreement (Distribution only)"]
[null,null,null,null,"2021-05-28","Six monthly progress reporting date 5"]
[null,null,null,null,"2021-11-30","Six monthly progress reporting date 6"]
[null,null,null,null,"2022-05-31","Six monthly progress reporting date 7"]
[null,null,null,null,"2022-09-30","Substantial Completion Milestone"]
[null,null,null,null,"2022-11-30","Six monthly progress reporting date 8"]
[null,null,null,null,"2023-04-28","Satisfactory Performance Dates"]
[null,null,null,null,"2023-05-31","Six monthly progress reporting date 9"]
[null,null,null,null,"2023-09-29","Long Stop Date"]
[null,null,null,null,"2023-09-29","Metering Assessment"]
[null,null,null,null,"2023-09-29","Metering Test"]
[null,"Prospective Interconnector",2017,"EA","2017-09-29","Metering Assessment"]
[null,null,2019,"T-1","2019-03-29","Connection Agreement (Distribution only)"]
[null,null,null,null,"2019-05-31","Six monthly progress reporting date"]
[null,null,null,null,"2019-09-30","Metering Assessment"]
[null,null,null,null,"2019-09-30","Metering Test"]
[null,null,null,null,"2019-09-30","Substantial Completion Milestone"]
[null,null,null,null,"2019-10-01","Long Stop Date"]
[null,null,null,null,"2020-05-01","Satisfactory Performance Dates"]
[null,null,null,"T-4","2020-09-30","Metering Assessment"]
[null,null,null,null,"2020-09-30","Metering Test"]
[null,null,2020,"T-4","2021-09-30","Metering Assessment"]
[null,null,null,null,"2021-09-30","Metering Test"]
[null,null,2021,"T-4","2022-09-30","Metering Assessment"]
[null,null,null,null,"2022-09-30","Metering Test"]
[null,null,2022,"T-4","2023-09-29","Metering Assessment"]
[null,null,null,null,"2023-09-29","Metering Test"]
[null,"Proven DSR",2016,"TA","2016-05-31","Metering Assessment"]
[null,null,null,null,"2016-09-16","Metering Test"]
[null,null,null,null,"2017-04-28","Satisfactory Performance Dates"]
[null,null,2017,"EA","2017-05-31","Metering Assessment"]
[null,null,null,null,"2017-09-15","Metering Test"]
[null,null,null,null,"2018-05-01","Satisfactory Performance Dates"]
[null,null,null,"TA","2017-05-31","Metering Assessment"]
[null,null,null,null,"2017-09-15","Metering Test"]
[null,null,null,null,"2018-05-01","Satisfactory Performance Dates"]
[null,null,2018,"T-1","2018-05-31","Metering Assessment"]
[null,null,null,null,"2018-09-14","Metering Test"]
[null,null,null,null,"2019-05-01","Satisfactory Performance Dates"]
[null,null,null,"T-4","2015-09-30","Metering Assessment"]
[null,null,null,null,"2017-03-31","Metering Test"]
[null,null,null,null,"2019-05-01","Satisfactory Performance Dates"]
[null,null,2019,"T-1","2019-03-29","Metering Assessment"]
[null,null,null,null,"2019-09-16","Metering Test"]
[null,null,null,null,"2020-05-01","Satisfactory Performance Dates"]
[null,null,null,"T-4","2016-09-30","Metering Assessment"]
[null,null,null,null,"2018-03-29","Metering Test"]
[null,null,null,null,"2020-05-01","Satisfactory Performance Dates"]
[null,null,2020,"T-4","2017-09-29","Metering Assessment"]
[null,null,null,null,"2019-03-29","Metering Test"]
[null,null,null,null,"2021-04-30","Satisfactory Performance Dates"]
[null,null,2021,"T-4","2018-09-28","Metering Assessment"]
[null,null,null,null,"2020-03-31","Metering Test"]
[null,null,null,null,"2022-04-29","Satisfactory Performance Dates"]
[null,null,2022,"T-4","2019-09-30","Metering Assessment"]
[null,null,null,null,"2021-03-31","Metering Test"]
[null,null,null,null,"2023-04-28","Satisfactory Performance Dates"]
[null,"Refurbishing",2017,"EA","2017-05-15","Financial Commitment Milestone"]
[null,null,null,null,"2017-09-29","Long Stop Date"]
[null,null,null,null,"2017-09-29","Metering Assessment"]
[null,null,null,null,"2017-09-29","Metering Test"]
[null,null,null,null,"2017-09-29","Substantial Completion Milestone"]
[null,null,2018,"T-1","2018-05-11","Financial Commitment Milestone"]
[null,null,null,null,"2018-09-28","Metering Assessment"]
[null,null,null,null,"2018-09-28","Metering Test"]
[null,null,null,null,"2018-09-28","Substantial Completion Milestone"]
[null,null,null,null,"2018-10-01","Long Stop Date"]
[null,null,null,"T-4","2016-04-29","Financial Commitment Milestone"]
[null,null,null,null,"2018-09-28","Metering Assessment"]
[null,null,null,null,"2018-09-28","Metering Test"]
[null,null,null,null,"2018-09-28","Substantial Completion Milestone"]
[null,null,null,null,"2019-10-01","Long Stop Date"]
[null,null,2019,"T-1","2019-09-30","Metering Assessment"]
[null,null,null,null,"2019-09-30","Metering Test"]
[null,null,null,null,"2019-09-30","Substantial Completion Milestone"]
[null,null,null,null,"2019-10-01","Long Stop Date"]
[null,null,null,"T-4","2017-04-21","Financial Commitment Milestone"]
[null,null,null,null,"2019-09-30","Metering Assessment"]
[null,null,null,null,"2019-09-30","Metering Test"]
[null,null,null,null,"2019-09-30","Substantial Completion Milestone"]
[null,null,null,null,"2020-10-01","Long Stop Date"]
[null,null,2020,"T-4","2018-04-20","Financial Commitment Milestone"]
[null,null,null,null,"2020-09-30","Metering Assessment"]
[null,null,null,null,"2020-09-30","Metering Test"]
[null,null,null,null,"2020-09-30","Substantial Completion Milestone"]
[null,null,null,null,"2021-10-01","Long Stop Date"]
[null,null,2021,"T-4","2019-06-20","Financial Commitment Milestone"]
[null,null,null,null,"2021-09-30","Metering Assessment"]
[null,null,null,null,"2021-09-30","Metering Test"]
[null,null,null,null,"2021-09-30","Substantial Completion Milestone"]
[null,null,null,null,"2022-09-30","Long Stop Date"]
[null,null,2022,"T-4","2022-09-30","Metering Assessment"]
[null,null,null,null,"2022-09-30","Metering Test"]
[null,null,null,null,"2022-09-30","Substantial Completion Milestone"]
[null,null,null,null,"2023-09-29","Long Stop Date"]
[null,"Unproven DSR",2016,"TA","2016-08-31","DSR Test"]
[null,null,null,null,"2016-08-31","Metering Assessment"]
[null,null,null,null,"2016-09-16","Metering Test"]
[null,null,null,null,"2017-04-28","Satisfactory Performance Dates"]
[null,null,2017,"EA","2017-08-31","DSR Test"]
[null,null,null,null,"2017-08-31","Metering Assessment"]
[null,null,null,null,"2017-09-15","Metering Test"]
[null,null,null,null,"2018-05-01","Satisfactory Performance Dates"]
[null,null,null,"TA","2017-08-31","DSR Test"]
[null,null,null,null,"2017-08-31","Metering Assessment"]
[null,null,null,null,"2017-09-15","Metering Test"]
[null,null,null,null,"2018-05-01","Satisfactory Performance Dates"]
[null,null,2018,"T-1","2018-05-31","Metering Assessment"]
[null,null,null,null,"2018-08-31","DSR Test"]
[null,null,null,null,"2018-09-14","Metering Test"]
[null,null,null,null,"2019-05-01","Satisfactory Performance Dates"]
[null,null,null,"T-4","2018-05-31","Metering Assessment"]
[null,null,null,null,"2018-08-31","DSR Test"]
[null,null,null,null,"2018-09-14","Metering Test"]
[null,null,null,null,"2019-05-01","Satisfactory Performance Dates"]
[null,null,2019,"T-1","2019-05-31","Metering Assessment"]
[null,null,null,null,"2019-08-30","DSR Test"]
[null,null,null,null,"2019-09-16","Metering Test"]
[null,null,null,null,"2020-05-01","Satisfactory Performance Dates"]
[null,null,null,"T-4","2019-05-31","Metering Assessment"]
[null,null,null,null,"2019-08-30","DSR Test"]
[null,null,null,null,"2019-09-16","Metering Test"]
[null,null,null,null,"2020-05-01","Satisfactory Performance Dates"]
[null,null,2020,"T-4","2020-05-29","Metering Assessment"]
[null,null,null,null,"2020-08-28","DSR Test"]
[null,null,null,null,"2020-09-16","Metering Test"]
[null,null,null,null,"2021-04-30","Satisfactory Performance Dates"]
[null,null,2021,"T-4","2021-05-28","Metering Assessment"]
[null,null,null,null,"2021-08-31","DSR Test"]
[null,null,null,null,"2021-09-16","Metering Test"]
[null,null,null,null,"2022-04-29","Satisfactory Performance Dates"]
[null,null,2022,"T-4","2022-05-31","Metering Assessment"]
[null,null,null,null,"2022-08-31","DSR Test"]
[null,null,null,null,"2022-09-16","Metering Test"]
[null,null,null,null,"2023-04-28","Satisfactory Performance Dates"]

{"sheet":"Sheet6","index":2,"n_rows":0,"n_cols":0,"rows_kept":0,"cut":false,"hidden":false,"merged":[]}